[Event "Belgrade Spring Open 2021"]
[Site "Belgrade"]
[Date "2021.04.03"]
[Round "1.1"]
[White "Martirosyan, Haik M."]
[Black "Katic, Goran"]
[Result "1-0"]
[ECO "E16"]
[WhiteElo "2620"]
[BlackElo "2007"]
[Annotator "ChessBase"]
[PlyCount "70"]
[EventDate "2021.04.02"]
[EventType "swiss"]
[EventCountry "SRB"]
[SourceTitle "playchess.com"]
[Source "ChessBase"]
[SourceQuality "1"]
[TimeControl "5400+30"]

1. d4 {[%emt 1:30:30]} Nf6 {[%emt 1:30:30]} 2. c4 {[%emt 0:00:30]} e6 {[%emt 0:00:30]} 3. Nf3 {[%emt 0:00:00]} Bb4+ {[%emt 0:00:30]} 4. Bd2 {[%emt 0:01:00]} Qe7 {[%emt 0:00:30]} 5. Nc3 {[%emt 0:00:30]} O-O {[%emt 0:00:30]} 6. g3 {[%emt 0:00:30]} b6 {[%emt 0:00:00]} 7. Bg2 {[%emt 0:00:00]} Bb7 {[%emt 0:01:00]} 8. O-O {[%emt 0:01:00]} Bxc3 {[%emt 0:00:30]} 9. Bxc3 {[%emt 0:00:30]} Ne4 {[%emt 0:00:30]} 10. Rc1 {[%emt 0:00:30]} Nxc3 {[%emt 0:00:30]} 11. Rxc3 {[%emt 0:00:30]} d6 {[%emt 0:00:00]} 12. d5 e5 {[%emt 0:01:00]} 13. e4 {[%emt 0:01:00]} a5 {[%emt 0:00:30]} 14. Nh4 {[%emt 0:00:30]} g6 {[%emt 0:00:00]} 15. Qe1 {[%emt 0:00:30]} Na6 {[%emt 0:01:00]} 16. f4 {[%emt 0:00:00]} f6 17. Nf3 {[%emt 0:01:00]} Nc5 {[%emt 0:01:00]} 18. Re3 {[%emt 0:00:30]} Ba6 {[%emt 0:00:30]} 19. Qc3 {[%emt 0:00:30]} b5 {[%emt 0:00:30]} 20. cxb5 {[%emt 0:00:00]} Bxb5 {[%emt 0:00:30]} 21. Rc1 {[%emt 0:01:00]} Rfe8 {[%emt 0:00:30]} 22. b3 {[%emt 0:00:30]} Ra7 {[%emt 0:00:30]} 23. Nd2 {[%emt 0:00:00]} Rb8 {[%emt 0:00:00]} 24. h4 {[%emt 0:00:00]} h6 25. Bh3 {[%emt 0:01:30]} c6 {[%emt 0:01:30]} 26. a4 {[%emt 0:00:30]} cxd5 {[%emt 0:00:30]} 27. axb5 {[%emt 0:00:30]} d4 {[%emt 0:00:00]} 28. Qc4+ {[%emt 0:00:00]} Qf7 {[%emt 0:01:00]} 29. Rf3 {[%emt 0:00:00]} Rab7 30. fxe5 {[%emt 0:01:30]} Qxc4 {[%emt 0:01:00]} 31. Nxc4 {[%emt 0:00:30]} dxe5 {[%emt 0:00:30]} 32. Nd6 {[%emt 0:00:30]} Rb6 {[%emt 0:00:30]} 33. Rxf6 {[%emt 0:00:30]} Kg7 {[%emt 0:00:00]} 34. Ne8+ {[%emt 0:00:00]} Rxe8 {[%emt 0:00:00]} 35. Rxb6 {[%emt 0:00:00]} Kg8 {[%emt 0:01:30]} 1-0

[Event "Belgrade Spring Open 2021"]
[Site "Belgrade"]
[Date "2021.04.03"]
[Round "1.2"]
[White "Milutinovic, Dejan D"]
[Black "Sargsyan, Shant"]
[Result "0-1"]
[ECO "A49"]
[WhiteElo "1989"]
[BlackElo "2598"]
[Annotator "ChessBase"]
[PlyCount "133"]
[EventDate "2021.04.02"]
[EventType "swiss"]
[EventCountry "SRB"]
[SourceTitle "playchess.com"]
[Source "ChessBase"]
[SourceQuality "1"]
[TimeControl "5400+30"]

1. d4 {[%emt 1:30:30]} d6 {[%emt 0:01:21]} 2. Nf3 {[%emt 0:00:30]} g6 {[%emt 0:00:45]} 3. g3 {[%emt 0:00:30]} Bg7 {[%emt 0:00:46]} 4. Bg2 {[%emt 0:00:30]} Nf6 {[%emt 1:29:08]} 5. O-O {[%emt 0:00:00]} Ne4 {[%emt 0:00:30]} 6. c4 {[%emt 0:00:00]} O-O {[%emt 0:00:00]} 7. Nbd2 {[%emt 0:00:00]} Nxd2 {[%emt 0:00:00]} 8. Bxd2 {[%emt 0:00:00]} Nd7 {[%emt 0:00:00]} 9. Qc1 {[%emt 0:00:00]} e5 {[%emt 0:00:00]} 10. Bh6 {[%emt 0:00:00]} e4 {[%emt 0:02:30]} 11. Ne1 {[%emt 0:03:30]} Nf6 {[%emt 0:00:00]} 12. Bg5 {[%emt 0:00:30]} Qd7 {[%emt 0:00:00]} 13. Nc2 {[%emt 0:00:30]} Re8 {[%emt 0:01:30]} 14. Rd1 {[%emt 0:00:30]} c6 {[%emt 0:00:00]} 15. Rb1 {[%emt 0:00:30]} Qf5 {[%emt 0:00:00]} 16. Qf4 {[%emt 0:00:30]} Qxf4 {[%emt 0:00:00]} 17. Bxf4 {[%emt 0:00:00]} d5 {[%emt 0:00:00]} 18. c5 {[%emt 0:01:00]} b6 {[%emt 0:00:00]} 19. Nb4 {[%emt 0:00:30]} Bb7 {[%emt 0:03:00]} 20. cxb6 {[%emt 0:00:00]} Bf8 {[%emt 0:00:30]} 21. Bd2 {[%emt 0:00:00]} axb6 {[%emt 0:00:00]} 22. a3 {[%emt 0:00:00]} Nd7 {[%emt 0:01:00]} 23. Bh3 {[%emt 0:00:00]} f5 {[%emt 0:00:00]} 24. g4 {[%emt 0:00:00]} c5 {[%emt 0:00:00]} 25. Nc2 {[%emt 0:00:00]} fxg4 {[%emt 0:00:00]} 26. Bxg4 {[%emt 0:00:00]} Nf6 {[%emt 0:00:00]} 27. Bh3 {[%emt 0:04:00]} c4 {[%emt 0:00:00]} 28. Bg5 {[%emt 0:00:30]} Kf7 {[%emt 0:03:00]} 29. Rf1 {[%emt 0:00:30]} h6 {[%emt 0:00:30]} 30. Bd2 {[%emt 0:00:30]} Bc8 {[%emt 0:00:30]} 31. Bg2 {[%emt 0:00:30]} g5 {[%emt 0:00:30]} 32. f3 {[%emt 0:00:30]} exf3 {[%emt 0:00:00]} 33. Bxf3 {[%emt 0:00:00]} Kg6 {[%emt 0:00:00]} 34. Ne3 {[%emt 0:01:00]} Be6 {[%emt 0:01:30]} 35. Rbe1 {[%emt 0:00:30]} b5 {[%emt 0:00:30]} 36. Rf2 {[%emt 0:00:30]} Bd6 {[%emt 0:00:30]} 37. Nf1 {[%emt 0:00:30]} Bg4 {[%emt 0:00:00]} 38. Bg2 {[%emt 0:00:00]} Ne4 {[%emt 0:01:00]} 39. Bxe4+ {[%emt 0:00:00]} Rxe4 {[%emt 0:00:30]} 40. e3 {[%emt 0:01:30]} h5 {[%emt 0:00:30]} 41. Ng3 {[%emt 0:00:00]} Re6 {[%emt 0:00:30]} 42. Ne2 {[%emt 0:01:00]} Bxe2 {[%emt 0:00:30]} 43. Rfxe2 {[%emt 0:00:30]} Rae8 {[%emt 0:00:30]} 44. Kg2 {[%emt 0:00:30]} Re4 {[%emt 0:00:30]} 45. h3 {[%emt 0:00:30]} g4 {[%emt 0:00:30]} 46. Rf2 {[%emt 0:00:30]} gxh3+ {[%emt 0:00:00]} 47. Kxh3 {[%emt 0:00:00]} Rg4 {[%emt 0:00:00]} 48. Ref1 {[%emt 0:01:00]} Rg3+ {[%emt 0:01:30]} 49. Kh4 {[%emt 0:00:00]} Re4+ {[%emt 0:00:00]} 50. Rf4 {[%emt 0:00:00]} Bxf4 {[%emt 0:00:00]} 51. exf4 {[%emt 0:00:00]} Rg4+ {[%emt 0:00:00]} 52. Kh3 {[%emt 0:00:00]} Kf5 {[%emt 0:02:00]} 53. a4 {[%emt 0:00:00]} bxa4 {[%emt 0:00:00]} 54. Ra1 {[%emt 0:00:00]} Rxd4 {[%emt 0:00:00]} 55. Bc3 {[%emt 0:00:00]} Rd3+ {[%emt 0:00:00]} 56. Kh2 {[%emt 0:04:00]} d4 {[%emt 0:00:00]} 57. Be1 {[%emt 0:00:00]} Re3 {[%emt 0:02:30]} 58. Bb4 {[%emt 0:01:00]} Re2+ {[%emt 0:00:30]} 59. Kh3 {[%emt 0:00:00]} Rxb2 {[%emt 0:00:00]} 60. Rxa4 {[%emt 0:00:00]} Rb3+ {[%emt 0:00:00]} 61. Kh2 {[%emt 0:00:00]} Rxf4 {[%emt 0:01:30]} 62. Bd6 {[%emt 0:00:00]} Rf2+ {[%emt 0:00:30]} 63. Kg1 {[%emt 0:00:00]} Rc2 {[%emt 0:00:30]} 64. Ra1 {[%emt 0:00:00]} d3 {[%emt 0:00:00]} 65. Rf1+ {[%emt 0:00:00]} Ke6 {[%emt 0:01:00]} 66. Bf4 {[%emt 0:00:00]} d2 {[%emt 0:00:00]} 67. Bxd2 {[%emt 0:00:00]} 0-1

[Event "Belgrade Spring Open 2021"]
[Site "Belgrade"]
[Date "2021.04.03"]
[Round "1.3"]
[White "Thybo, Jesper Sondergaard"]
[Black "Lohia, Sohum"]
[Result "1-0"]
[ECO "E11"]
[WhiteElo "2568"]
[BlackElo "1985"]
[Annotator "ChessBase"]
[PlyCount "53"]
[EventDate "2021.04.02"]
[EventType "swiss"]
[EventCountry "SRB"]
[SourceTitle "playchess.com"]
[Source "ChessBase"]
[SourceQuality "1"]
[TimeControl "5400+30"]

1. d4 {[%emt 0:00:00]} Nf6 {[%emt 0:00:00]} 2. c4 {[%emt 0:00:00]} e6 {[%emt 0:00:00]} 3. g3 {[%emt 0:00:19]} Bb4+ {[%emt 0:00:04]} 4. Bd2 {[%emt 0:00:12]} Be7 {[%emt 0:00:12]} 5. Bg2 {[%emt 0:00:55]} d5 {[%emt 0:00:20]} 6. Nf3 {[%emt 0:00:20]} O-O {[%emt 0:00:13]} 7. O-O {[%emt 0:00:17]} Nbd7 {[%emt 0:00:18]} 8. b4 {[%emt 0:00:54]} dxc4 {[%emt 0:05:51]} 9. Qc2 {[%emt 0:02:03]} c3 {[%emt 0:13:24]} 10. Bxc3 {[%emt 0:07:09]} Nd5 {[%emt 0:07:17]} 11. a3 {[%emt 0:00:42]} b6 {[%emt 0:01:23]} 12. e4 {[%emt 0:03:14]} Nxc3 {[%emt 0:00:55]} 13. Nxc3 {[%emt 0:00:05]} Bb7 {[%emt 0:01:42]} 14. Rfd1 {[%emt 0:02:33]} Nf6 {[%emt 0:02:58]} 15. Ng5 {[%emt 0:08:37]} h6 {[%emt 0:02:54]} 16. e5 {[%emt 0:02:54]} hxg5 {[%emt 0:02:45]} 17. exf6 {[%emt 0:00:35]} Bxg2 {[%emt 0:02:44]} 18. fxe7 {[%emt 0:00:14]} Qxe7 {[%emt 0:00:18]} 19. Kxg2 {[%emt 0:00:05]} c5 {[%emt 0:00:20]} 20. bxc5 {[%emt 0:02:15]} bxc5 {[%emt 0:00:10]} 21. d5 {[%emt 0:00:06]} Rfd8 {[%emt 0:00:42]} 22. Qe4 {[%emt 0:02:08]} Qf6 {[%emt 0:00:36]} 23. dxe6 {[%emt 0:04:03]} Qxc3 {[%emt 0:01:07]} 24. e7 {[%emt 0:00:09]} Re8 {[%emt 0:01:04]} 25. Qxa8 {[%emt 0:00:11]} Rxa8 {[%emt 0:00:12]} 26. Rd8+ {[%emt 0:00:04]} Kh7 {[%emt 0:00:29]} 27. Rxa8 {[%emt 0:00:05]} 1-0

[Event "Belgrade Spring Open 2021"]
[Site "Belgrade"]
[Date "2021.04.03"]
[Round "1.4"]
[White "Radosavljevic, Vukasin"]
[Black "Sturt, Raven"]
[Result "0-1"]
[ECO "C24"]
[WhiteElo "1979"]
[BlackElo "2490"]
[Annotator "ChessBase"]
[PlyCount "80"]
[EventDate "2021.04.02"]
[EventType "swiss"]
[EventCountry "SRB"]
[SourceTitle "playchess.com"]
[Source "ChessBase"]
[SourceQuality "1"]
[TimeControl "5400+30"]

1. e4 {[%emt 0:00:00]} e5 {[%emt 0:00:00]} 2. Bc4 {[%emt 0:00:00]} Nf6 {[%emt 0:00:42]} 3. d4 {[%emt 0:04:19]} exd4 {[%emt 0:06:18]} 4. Nf3 {[%emt 0:00:35]} Nxe4 {[%emt 0:11:00]} 5. Qxd4 {[%emt 0:00:49]} Nf6 {[%emt 0:01:43]} 6. Nc3 {[%emt 0:01:14]} Nc6 {[%emt 0:03:33]} 7. Qh4 {[%emt 0:00:16]} Bb4 {[%emt 1:10:14]} 8. Bd2 {[%emt 0:04:37]} Qe7+ {[%emt 0:00:00]} 9. Kf1 {[%emt 0:03:13]} d5 {[%emt 0:00:00]} 10. Bxd5 {[%emt 0:20:45]} Nxd5 {[%emt 0:00:00]} 11. Nxd5 {[%emt 0:05:44]} Qxh4 {[%emt 0:00:00]} 12. Nxh4 {[%emt 0:00:08]} Bxd2 {[%emt 0:00:00]} 13. Nxc7+ {[%emt 0:00:32]} Ke7 {[%emt 0:00:00]} 14. Nxa8 {[%emt 0:01:45]} Bf4 {[%emt 0:00:00]} 15. Re1+ {[%emt 0:06:11]} Kf6 {[%emt 0:00:00]} 16. Re4 {[%emt 0:02:14]} Bd6 {[%emt 0:00:00]} 17. g4 {[%emt 0:05:53]} Be6 {[%emt 0:00:00]} 18. c4 {[%emt 0:10:29]} Rxa8 {[%emt 0:00:00]} 19. Rg1 {[%emt 0:04:10]} g5 {[%emt 0:00:00]} 20. Nf3 {[%emt 0:00:09]} Ne5 {[%emt 0:00:00]} 21. Nxe5 {[%emt 0:05:14]} Bxe5 {[%emt 0:00:00]} 22. b3 {[%emt 0:00:10]} Bxh2 {[%emt 0:00:00]} 23. Rh1 {[%emt 0:00:37]} Bf4 {[%emt 0:00:00]} 24. f3 {[%emt 0:01:39]} Kg6 {[%emt 0:00:00]} 25. Ke2 {[%emt 0:00:45]} a5 {[%emt 0:00:00]} 26. Rd1 {[%emt 0:00:49]} a4 {[%emt 0:00:00]} 27. b4 {[%emt 0:00:52]} Rc8 {[%emt 0:00:00]} 28. Rdd4 {[%emt 0:02:34]} b5 {[%emt 0:00:00]} 29. c5 {[%emt 0:00:22]} Bxa2 {[%emt 0:00:00]} 30. Re7 {[%emt 0:02:24]} Bc4+ {[%emt 0:11:30]} 31. Kd1 {[%emt 0:00:10]} a3 {[%emt 0:00:00]} 32. Kc2 {[%emt 0:00:17]} Ra8 {[%emt 0:00:00]} 33. Kb1 {[%emt 0:00:21]} a2+ {[%emt 0:00:00]} 34. Ka1 {[%emt 0:00:05]} Bc1 {[%emt 0:00:00]} 35. Rd1 {[%emt 0:01:59]} Ba3 {[%emt 0:00:00]} 36. c6 {[%emt 0:01:02]} Bxb4 {[%emt 0:00:00]} 37. Re3 {[%emt 0:00:09]} Bf8 {[%emt 0:00:00]} 38. Rc3 {[%emt 0:00:24]} Bg7 {[%emt 0:00:00]} 39. Rd6+ {[%emt 0:00:06]} Be6 {[%emt 0:00:00]} 40. f4 {[%emt 0:00:22]} Bxc3# {[%emt 0:00:00]} 0-1

[Event "Belgrade Spring Open 2021"]
[Site "Belgrade"]
[Date "2021.04.03"]
[Round "1.5"]
[White "Kazakouski, Valery"]
[Black "Askovic, Jovica"]
[Result "1-0"]
[ECO "D74"]
[WhiteElo "2476"]
[BlackElo "1976"]
[Annotator "ChessBase"]
[PlyCount "67"]
[EventDate "2021.04.02"]
[EventType "swiss"]
[EventCountry "SRB"]
[SourceTitle "playchess.com"]
[Source "ChessBase"]
[SourceQuality "1"]
[TimeControl "5400+30"]

1. d4 {[%emt 0:00:00]} Nf6 {[%emt 0:00:00]} 2. Nf3 {[%emt 0:00:00]} g6 {[%emt 0:00:00]} 3. c4 {[%emt 0:00:00]} Bg7 {[%emt 0:00:00]} 4. g3 {[%emt 0:00:00]} O-O {[%emt 0:00:24]} 5. Bg2 {[%emt 0:00:00]} d5 {[%emt 0:00:10]} 6. cxd5 {[%emt 0:00:00]} Nxd5 {[%emt 0:00:11]} 7. O-O {[%emt 0:00:22]} Nc6 {[%emt 0:04:54]} 8. Nc3 {[%emt 0:02:15]} Nxc3 {[%emt 0:02:09]} 9. bxc3 {[%emt 1:31:53]} e5 {[%emt 0:02:43]} 10. Ba3 {[%emt 0:00:00]} Re8 {[%emt 0:00:40]} 11. e3 {[%emt 0:00:00]} Be6 {[%emt 0:07:06]} 12. Nd2 {[%emt 0:00:00]} Qd7 {[%emt 0:01:57]} 13. Nb3 {[%emt 0:00:00]} Bxb3 {[%emt 0:04:47]} 14. Qxb3 {[%emt 0:00:00]} Rab8 {[%emt 0:02:12]} 15. Rfd1 {[%emt 0:00:00]} exd4 {[%emt 0:00:40]} 16. cxd4 {[%emt 0:00:00]} Na5 {[%emt 0:01:13]} 17. Qc3 {[%emt 0:00:00]} Nc6 {[%emt 0:05:03]} 18. Rdc1 {[%emt 0:00:00]} Nxd4 {[%emt 0:02:38]} 19. exd4 {[%emt 0:00:00]} Bxd4 {[%emt 0:00:15]} 20. Qd2 {[%emt 0:00:00]} Rbd8 {[%emt 0:06:08]} 21. Bb2 {[%emt 0:00:00]} Qa4 {[%emt 0:01:44]} 22. Bxd4 {[%emt 0:00:00]} Rxd4 {[%emt 0:00:09]} 23. Qb2 {[%emt 0:00:00]} Rb4 {[%emt 0:01:45]} 24. Qf6 {[%emt 0:00:00]} c6 {[%emt 0:01:23]} 25. Re1 {[%emt 0:00:00]} Rf8 {[%emt 0:01:38]} 26. Rad1 {[%emt 0:00:00]} Qa5 {[%emt 0:02:52]} 27. h4 {[%emt 0:00:00]} Qxa2 {[%emt 0:01:13]} 28. Rd8 {[%emt 0:00:00]} Qb2 {[%emt 0:01:21]} 29. Rxf8+ {[%emt 0:00:00]} Kxf8 {[%emt 0:01:03]} 30. Qd6+ {[%emt 0:00:00]} Kg7 {[%emt 0:01:13]} 31. Re8 {[%emt 0:00:00]} Qd4 {[%emt 0:05:43]} 32. Qf8+ {[%emt 0:00:00]} Kf6 {[%emt 0:00:10]} 33. Qh8+ {[%emt 0:00:00]} Kf5 {[%emt 0:00:24]} 34. Bh3+ {[%emt 0:00:00]} 1-0

[Event "Belgrade Spring Open 2021"]
[Site "Belgrade"]
[Date "2021.04.03"]
[Round "1.6"]
[White "Djordjevic, Nevena"]
[Black "Draskovic, Luka"]
[Result "0-1"]
[ECO "E61"]
[WhiteElo "1976"]
[BlackElo "2472"]
[Annotator "ChessBase"]
[PlyCount "50"]
[EventDate "2021.04.02"]
[EventType "swiss"]
[EventCountry "SRB"]
[SourceTitle "playchess.com"]
[Source "ChessBase"]
[SourceQuality "1"]
[TimeControl "5400+30"]

1. d4 {[%emt 0:00:00]} d6 {[%emt 0:00:00]} 2. Nf3 {[%emt 0:00:33]} Nf6 {[%emt 0:00:09]} 3. c4 {[%emt 0:00:56]} g6 {[%emt 0:00:22]} 4. Nc3 {[%emt 0:00:43]} Bf5 {[%emt 0:01:01]} 5. Bf4 {[%emt 0:10:14]} Bg7 {[%emt 0:01:42]} 6. h3 {[%emt 0:01:26]} Ne4 {[%emt 0:07:57]} 7. Qb3 {[%emt 0:11:25]} Nxc3 {[%emt 0:03:04]} 8. Qxc3 {[%emt 0:06:37]} O-O {[%emt 0:07:25]} 9. e3 {[%emt 0:00:31]} Nc6 {[%emt 0:08:20]} 10. Be2 {[%emt 0:04:16]} e5 {[%emt 0:01:57]} 11. dxe5 {[%emt 0:10:13]} dxe5 {[%emt 0:00:37]} 12. Bg5 {[%emt 0:06:58]} e4 {[%emt 0:01:40]} 13. Qxg7+ {[%emt 0:13:55]} Kxg7 {[%emt 0:00:06]} 14. Bxd8 {[%emt 0:00:04]} exf3 {[%emt 0:00:19]} 15. Bxc7 {[%emt 0:00:53]} fxe2 {[%emt 0:01:27]} 16. Kxe2 {[%emt 0:01:01]} Rac8 {[%emt 0:03:19]} 17. Bd6 {[%emt 0:01:00]} Rfd8 {[%emt 0:05:20]} 18. Rhd1 {[%emt 0:01:42]} f6 {[%emt 0:02:20]} 19. f3 {[%emt 0:02:22]} Ne5 {[%emt 0:02:23]} 20. c5 {[%emt 0:01:04]} Nc4 {[%emt 0:02:20]} 21. e4 {[%emt 0:00:57]} Be6 {[%emt 0:01:35]} 22. f4 {[%emt 0:04:21]} Nxd6 {[%emt 0:01:02]} 23. cxd6 {[%emt 0:00:11]} Rc6 {[%emt 0:01:08]} 24. e5 {[%emt 0:00:18]} fxe5 {[%emt 0:00:27]} 25. fxe5 {[%emt 0:00:05]} Rc5 {[%emt 0:00:05]} 0-1

[Event "Belgrade Spring Open 2021"]
[Site "Belgrade"]
[Date "2021.04.03"]
[Round "1.7"]
[White "Tadic, Stefan"]
[Black "Mamedov, Edgar"]
[Result "0-1"]
[ECO "C02"]
[WhiteElo "2416"]
[BlackElo "1973"]
[Annotator "ChessBase"]
[PlyCount "52"]
[EventDate "2021.04.02"]
[EventType "swiss"]
[EventCountry "SRB"]
[SourceTitle "playchess.com"]
[Source "ChessBase"]
[SourceQuality "1"]
[TimeControl "5400+30"]

1. e4 {[%emt 0:00:00]} e6 {[%emt 0:00:03]} 2. d4 {[%emt 0:00:06]} d5 {[%emt 0:00:08]} 3. e5 {[%emt 0:00:05]} c5 {[%emt 0:00:11]} 4. c3 {[%emt 0:00:05]} Nc6 {[%emt 0:00:05]} 5. Nf3 {[%emt 0:00:06]} Qb6 {[%emt 0:00:25]} 6. Bd3 {[%emt 0:00:34]} Bd7 {[%emt 0:00:21]} 7. O-O {[%emt 0:00:10]} Rc8 {[%emt 0:03:25]} 8. dxc5 {[%emt 0:07:35]} Bxc5 {[%emt 0:00:34]} 9. b4 {[%emt 0:00:07]} Be7 {[%emt 0:01:34]} 10. Re1 {[%emt 0:05:38]} a6 {[%emt 0:03:47]} 11. a3 {[%emt 0:01:27]} f6 {[%emt 0:04:17]} 12. exf6 {[%emt 0:10:54]} Nxf6 {[%emt 0:00:17]} 13. Nbd2 {[%emt 0:01:46]} O-O {[%emt 0:00:26]} 14. c4 {[%emt 0:00:33]} Ng4 {[%emt 0:07:24]} 15. c5 {[%emt 0:05:11]} Qc7 {[%emt 0:00:17]} 16. Bb2 {[%emt 0:07:14]} Nxf2 {[%emt 0:11:06]} 17. Kxf2 {[%emt 0:16:43]} Qxh2 {[%emt 0:00:16]} 18. Rg1 {[%emt 0:03:51]} e5 {[%emt 0:10:26]} 19. Qb3 {[%emt 0:16:33]} Be6 {[%emt 0:01:47]} 20. Ke2 {[%emt 0:00:46]} Qf4 {[%emt 0:04:32]} 21. Bc2 {[%emt 0:01:39]} Qg4 {[%emt 0:01:36]} 22. Nf1 {[%emt 0:02:19]} e4 {[%emt 0:03:27]} 23. Ne3 {[%emt 0:00:41]} exf3+ {[%emt 0:00:54]} 24. Kd2 {[%emt 0:03:05]} Qh4 {[%emt 0:03:09]} 25. gxf3 {[%emt 0:04:28]} Qf2+ {[%emt 0:00:12]} 26. Kd3 {[%emt 0:00:13]} Rxf3 {[%emt 0:01:53]} 0-1

[Event "Belgrade Spring Open 2021"]
[Site "Belgrade"]
[Date "2021.04.03"]
[Round "1.8"]
[White "Lalic, Mile"]
[Black "Todorovic, Goran M"]
[Result "0-1"]
[ECO "B25"]
[WhiteElo "1959"]
[BlackElo "2406"]
[Annotator "ChessBase"]
[PlyCount "58"]
[EventDate "2021.04.02"]
[EventType "swiss"]
[EventCountry "SRB"]
[SourceTitle "playchess.com"]
[Source "ChessBase"]
[SourceQuality "1"]
[TimeControl "5400+30"]

1. e4 {[%emt 0:00:00]} c5 {[%emt 0:00:00]} 2. Nc3 {[%emt 0:00:00]} Nc6 {[%emt 0:00:00]} 3. g3 {[%emt 0:00:00]} g6 {[%emt 0:00:11]} 4. Bg2 {[%emt 0:00:01]} Bg7 {[%emt 0:00:09]} 5. Nge2 {[%emt 0:00:22]} e6 {[%emt 0:01:02]} 6. O-O {[%emt 0:00:18]} Nge7 {[%emt 0:00:38]} 7. d3 {[%emt 0:01:49]} d6 {[%emt 0:04:06]} 8. f4 {[%emt 0:07:04]} a6 {[%emt 0:02:09]} 9. a4 {[%emt 0:05:48]} O-O {[%emt 0:02:49]} 10. g4 {[%emt 0:02:12]} f5 {[%emt 0:02:05]} 11. g5 {[%emt 0:02:04]} Rb8 {[%emt 0:01:39]} 12. Ng3 {[%emt 0:00:29]} b5 {[%emt 0:08:54]} 13. exf5 {[%emt 0:01:13]} exf5 {[%emt 0:00:47]} 14. axb5 {[%emt 0:00:33]} axb5 {[%emt 0:00:06]} 15. Nd5 {[%emt 0:03:11]} Kh8 {[%emt 0:03:21]} 16. Nxe7 {[%emt 0:03:58]} Nxe7 {[%emt 0:00:07]} 17. Ra7 {[%emt 1:09:28]} d5 {[%emt 0:08:27]} 18. Be3 {[%emt 0:00:00]} Qd6 {[%emt 0:08:59]} 19. c3 {[%emt 0:00:00]} Nc6 {[%emt 0:06:00]} 20. Ra1 {[%emt 0:00:00]} Re8 {[%emt 0:02:47]} 21. Re1 {[%emt 0:00:00]} Bd7 {[%emt 0:00:41]} 22. Qf3 {[%emt 0:00:00]} d4 {[%emt 0:01:58]} 23. Bd2 {[%emt 0:00:00]} dxc3 {[%emt 0:00:19]} 24. Bxc3 {[%emt 0:00:00]} Nd4 {[%emt 0:01:00]} 25. Qd5 {[%emt 0:00:00]} Qxd5 {[%emt 0:03:53]} 26. Bxd5 {[%emt 0:00:00]} b4 {[%emt 0:02:09]} 27. Bd2 {[%emt 0:00:00]} Bb5 {[%emt 0:03:42]} 28. Kf2 {[%emt 0:00:00]} Red8 {[%emt 0:04:37]} 29. Bf7 {[%emt 0:02:29]} Nc2 {[%emt 0:00:53]} 0-1

[Event "Belgrade Spring Open 2021"]
[Site "Belgrade"]
[Date "2021.04.03"]
[Round "1.9"]
[White "Kaasen, Tor Fredrik"]
[Black "Mrdak, Milomir"]
[Result "1-0"]
[ECO "C41"]
[WhiteElo "2397"]
[BlackElo "1957"]
[Annotator "ChessBase"]
[PlyCount "77"]
[EventDate "2021.04.02"]
[EventType "swiss"]
[EventCountry "SRB"]
[SourceTitle "playchess.com"]
[Source "ChessBase"]
[SourceQuality "1"]
[TimeControl "5400+30"]

1. e4 {[%emt 0:00:00]} d6 {[%emt 0:00:00]} 2. d4 {[%emt 0:00:54]} Nd7 {[%emt 0:08:54]} 3. Nc3 {[%emt 0:01:16]} e5 {[%emt 0:00:43]} 4. Nf3 {[%emt 0:00:49]} c6 {[%emt 0:00:21]} 5. a4 {[%emt 0:01:25]} Be7 {[%emt 0:00:22]} 6. Be2 {[%emt 0:04:13]} Ngf6 {[%emt 0:00:21]} 7. O-O {[%emt 0:01:14]} O-O {[%emt 0:00:27]} 8. Re1 {[%emt 0:01:25]} Qc7 {[%emt 0:01:45]} 9. a5 {[%emt 0:03:18]} Re8 {[%emt 0:03:44]} 10. d5 {[%emt 0:02:56]} a6 {[%emt 0:02:20]} 11. Be3 {[%emt 0:01:53]} c5 {[%emt 0:02:06]} 12. Nd2 {[%emt 0:01:39]} g6 {[%emt 0:07:52]} 13. Nc4 {[%emt 0:01:26]} h5 {[%emt 0:00:55]} 14. f3 {[%emt 0:03:09]} Nh7 {[%emt 0:07:20]} 15. Qd2 {[%emt 0:01:42]} g5 {[%emt 0:05:26]} 16. Na4 {[%emt 0:02:06]} Ndf8 {[%emt 0:00:31]} 17. Nab6 {[%emt 0:01:09]} Rb8 {[%emt 0:00:18]} 18. c3 {[%emt 0:01:40]} Ng6 {[%emt 0:02:19]} 19. b4 {[%emt 0:01:39]} cxb4 {[%emt 0:00:28]} 20. cxb4 {[%emt 0:00:28]} Nf4 {[%emt 0:00:43]} 21. Bf1 {[%emt 0:00:52]} Bd7 {[%emt 0:00:54]} 22. Rec1 {[%emt 0:02:29]} Qd8 {[%emt 0:00:24]} 23. Nxd7 {[%emt 0:00:47]} Qxd7 {[%emt 0:00:07]} 24. Nb6 {[%emt 0:00:18]} Qd8 {[%emt 0:00:22]} 25. b5 {[%emt 0:00:12]} g4 {[%emt 0:06:42]} 26. fxg4 {[%emt 0:01:51]} hxg4 {[%emt 0:01:08]} 27. bxa6 {[%emt 0:01:21]} bxa6 {[%emt 0:00:19]} 28. Bxa6 {[%emt 0:01:04]} Ng5 {[%emt 0:00:49]} 29. Qc2 {[%emt 0:01:38]} Kg7 {[%emt 0:03:42]} 30. Bc8 {[%emt 0:03:31]} g3 {[%emt 0:05:15]} 31. hxg3 {[%emt 0:02:19]} Nh5 {[%emt 0:00:51]} 32. Ra3 {[%emt 0:05:21]} Rh8 {[%emt 0:04:52]} 33. Bd2 {[%emt 0:08:16]} Rxb6 {[%emt 0:02:18]} 34. axb6 {[%emt 0:03:12]} Qxb6+ {[%emt 0:00:18]} 35. Be3 {[%emt 0:00:06]} Qb4 {[%emt 0:00:19]} 36. Ra4 {[%emt 0:01:26]} Qb5 {[%emt 0:01:36]} 37. Ba6 {[%emt 0:02:24]} Qd7 {[%emt 0:00:42]} 38. Bf2 {[%emt 0:00:25]} Rc8 {[%emt 0:03:31]} 39. Bxc8 {[%emt 0:00:25]} 1-0